bitfinex-derivatives/quotes_SOLF0:USTF0_20260107
["timestamp","ask_amount","ask_price","bid_price","bid_amount"]
[1767766233059,85.2,138.9,138.82,0.31529097]
[1767766235863,201.6564,138.95,138.84,0.31529097]
[1767766235864,87.90576096,138.94,138.84,0.31529097]
[1767766236362,85.18,138.94,138.84,0.31529097]
[1767766237356,2.72576096,138.93,138.84,0.31529097]
[1767766238259,87.90576096,138.94,138.84,0.31529097]
[1767766238854,85.18,138.94,138.85,0.31529097]
[1767766241456,2.72576096,138.96,138.87,0.31529097]
[1767766241655,91.6406,138.97,138.87,0.31529097]
[1767766242561,91.6406,138.97,138.87,6.79999097]
[1767766245066,2.72576096,138.94,138.82,0.31529097]
[1767766246552,9.20786096,138.94,138.83,6.80199097]
[1767766246966,2.72576096,138.94,138.84,0.31529097]
[1767766248767,6.4825,138.93,138.84,0.31529097]
[1767766252862,9.20876096,138.92,138.82,0.32897546]
[1767766253572,9.20876096,138.92,138.82,6.81617546]
[1767766255473,9.20876096,138.92,138.83,0.32897546]
[1767766257475,9.20876096,138.92,138.83,6.81567546]
[1767766259069,6.4834,138.91,138.83,6.81567546]
[1767766259275,2.72576096,138.9,138.83,6.81567546]
[1767766260370,2.72576096,138.9,138.81,6.4875]
[1767766260571,2.72576096,138.9,138.81,6.81647546]
[1767766260773,2.72576096,138.9,138.82,0.32897546]
[1767766261578,2.72576096,138.9,138.82,6.81617546]
[1767766262780,2.72576096,138.9,138.83,0.30917451]
[1767766263783,6.4834,138.91,138.83,0.30917451]
[1767766263980,9.20916096,138.91,138.83,0.30917451]
[1767766269087,9.20916096,138.91,138.83,6.96132399]
[1767766269491,9.20916096,138.91,138.83,0.30917451]
[1767766270389,2.72576096,138.89,138.81,6.98312104]
[1767766270685,2.72576096,138.89,138.81,0.33097156]
[1767766270984,2.72576096,138.89,138.8,13.14024948]
[1767766271190,6.4847,138.88,138.8,13.14024948]
[1767766271584,2.72576096,138.89,138.81,0.33097156]
[1767766271790,2.72576096,138.89,138.81,6.81867156]
[1767766271992,2.72576096,138.89,138.81,13.47082104]
[1767766272191,2.72576096,138.89,138.82,6.65214948]
[1767766272488,6.4838,138.9,138.82,6.65214948]
[1767766272888,6.4838,138.9,138.82,13.47032104]
[1767766273486,6.4838,138.9,138.82,6.98312104]
[1767766273790,9.21016096,138.89,138.82,6.65214948]
[1767766274290,9.21016096,138.89,138.81,6.65214948]
[1767766276193,9.21016096,138.89,138.82,6.65214948]
[1767766277495,9.21016096,138.89,138.81,6.65214948]
[1767766278392,9.21016096,138.89,138.82,6.65214948]
[1767766278593,1.74089787,138.87,138.82,6.65214948]
[1767766279696,1.74089787,138.87,138.81,6.98312104]
[1767766282102,1.74089787,138.87,138.82,6.65214948]
[1767766282499,1.74089787,138.87,138.81,6.98312104]
[1767766285900,1.74089787,138.87,138.82,6.98312104]
[1767766288493,8.22529787,138.89,138.82,6.98312104]
[1767766288993,8.22439787,138.91,138.84,0.33097156]
[1767766289301,8.22439787,138.91,138.85,0.33097156]
[1767766290892,1.74089787,138.91,138.85,6.98312104]
[1767766291098,93.36319787,138.93,138.86,6.98312104]
[1767766293401,6.4816,138.95,138.87,6.98430902]
[1767766293608,1.74089787,138.96,138.88,0.33215954]
[1767766293900,1.74089787,138.94,138.88,0.33215954]
[1767766295003,1.74089787,138.93,138.87,6.65214948]
[1767766295410,1.74089787,138.93,138.86,6.98430902]
[1767766296309,8.22339787,138.93,138.86,6.98430902]
[1767766299814,8.22339787,138.93,138.87,0.33215954]
[1767766300015,1.74089787,138.93,138.87,0.33215954]
[1767766300213,8.22249787,138.95,138.87,0.33215954]
[1767766300816,8.22249787,138.95,138.87,6.98430902]
[1767766301217,1.74089787,138.93,138.87,0.33215954]
[1767766302418,1.74089787,138.91,138.86,6.65214948]
[1767766304317,8.22289787,138.94,138.87,0.33215954]
[1767766306521,6.482,138.94,138.87,0.33215954]
[1767766306722,1.74089787,138.93,138.87,0.33215954]
[1767766307736,8.22289787,138.94,138.87,6.98430902]
[1767766308833,6.482,138.94,138.87,6.98430902]
[1767766309032,8.22289787,138.94,138.87,6.98430902]
[1767766309425,8.22289787,138.94,138.87,0.33215954]
[1767766311333,100.8168,138.96,138.85,7.03687473]
[1767766311334,1.74089787,138.92,138.85,7.03687473]
[1767766312133,8.22369787,138.92,138.86,0.30962913]
[1767766312432,8.22369787,138.92,138.86,7.03687473]
[1767766312631,8.22369787,138.92,138.86,0.30962913]
[1767766313523,8.22369787,138.92,138.86,7.03687473]
[1767766313724,8.22289787,138.94,138.87,0.30962913]
[1767766316028,6.4811,138.96,138.88,0.30962913]
[1767766316329,1.74089787,138.94,138.88,0.30962913]
[1767766316632,1.74089787,138.95,138.88,0.30962913]
[1767766320032,1.74089787,138.93,138.88,0.30962913]
[1767766321033,8.22259787,138.95,138.88,0.30962913]
[1767766322034,1.74089787,138.93,138.88,0.30962913]
[1767766326639,6.4817,138.95,138.88,0.30962913]
[1767766326832,1.74089787,138.93,138.88,0.30962913]
[1767766327031,1.74089787,138.93,138.87,6.7272456]
[1767766329142,1.74089787,138.94,138.88,0.31869301]
[1767766330446,1.74089787,138.94,138.87,6.7272456]
[1767766331540,1.74089787,138.94,138.87,7.04593861]
[1767766332241,1.74089787,138.94,138.88,6.7272456]
[1767766335047,1.74089787,138.94,138.88,7.04593861]
[1767766335250,6.4817,138.95,138.89,0.31869301]
[1767766335443,1.74089787,138.94,138.89,0.31869301]
[1767766335643,1.74089787,138.94,138.89,7.04593861]
[1767766337551,1.74089787,138.93,138.89,7.04593861]
[1767766339350,1.74089787,138.93,138.89,4.56e-05]
[1767766339555,1.74089787,138.91,138.85,9.32760204]
[1767766340048,1.74089787,138.91,138.86,0.31869301]
[1767766340754,2.71853034,138.93,138.86,0.31869301]
[1767766341954,2.71853034,138.95,138.86,0.31869301]
[1767766342153,2.71853034,138.95,138.87,0.31869301]
[1767766343456,103.52893034,138.97,138.87,0.31869301]
[1767766343658,6.4812,138.96,138.87,0.31869301]
[1767766345155,6.4812,138.96,138.88,0.31869301]
[1767766351160,2.71853034,138.97,138.88,0.31869301]
[1767766351362,2.71853034,138.93,138.83,9.32760204]
[1767766351564,2.71853034,138.91,138.83,0.31869301]
[1767766351775,9.20293034,138.89,138.81,9.33665402]
[1767766352063,2.71853034,138.89,138.81,0.32774499]
[1767766352457,6.4848,138.88,138.81,0.32774499]
[1767766352764,2.71853034,138.89,138.81,0.32774499]
[1767766353160,6.485,138.88,138.81,0.32774499]
[1767766353560,6.485,138.88,138.79,0.32774499]
[1767766353866,2.71853034,138.87,138.79,0.32774499]
[1767766354062,6.4839,138.9,138.79,0.32774499]
[1767766354264,6.4839,138.9,138.8,0.32774499]
[1767766354764,9.20303034,138.89,138.8,0.32774499]
[1767766356764,9.20303034,138.89,138.8,6.81574499]
[1767766357861,2.71853034,138.89,138.81,0.32774499]
[1767766361569,9.20283034,138.89,138.81,0.32774499]
[1767766361764,2.71853034,138.87,138.79,0.32774499]
[1767766362172,6.4848,138.88,138.79,0.32774499]
[1767766362367,2.71853034,138.89,138.8,0.32774499]
[1767766368177,6.4847,138.88,138.8,0.32774499]
[1767766369074,2.71853034,138.89,138.81,0.32774499]
[1767766374987,9.20283034,138.89,138.81,0.32774499]
[1767766380280,6.4848,138.88,138.79,0.32774499]
[1767766380485,2.71853034,138.89,138.79,0.32774499]
[1767766380486,2.71853034,138.87,138.79,0.32774499]
[1767766380990,2.71853034,138.87,138.77,0.32774499]
[1767766381193,2.71853034,138.85,138.77,0.32774499]
[1767766382697,9.20463034,138.85,138.77,6.81734499]
[1767766385198,2.71853034,138.82,138.75,0.3075849]
[1767766385501,2.71853034,138.84,138.75,0.3075849]
[1767766386688,6.487,138.83,138.75,0.3075849]
[1767766391997,6.4863,138.85,138.76,0.31995966]
[1767766393697,6.4863,138.85,138.77,0.31995966]
[1767766396905,6.4863,138.85,138.78,0.31995966]
[1767766397403,6.4854,138.87,138.78,0.31995966]
[1767766400406,6.4857,138.86,138.78,0.31995966]
[1767766400707,8.22715293,138.86,138.78,0.31995966]
[1767766402992,8.22715293,138.86,138.78,6.80905966]
[1767766404207,1.74145293,138.87,138.79,0.31995966]
[1767766404398,1.74145293,138.87,138.8,0.31995966]
[1767766408906,8.22675293,138.87,138.78,6.72965464]
[1767766409208,8.22675293,138.87,138.78,7.0496143]
[1767766410509,1.74145293,138.87,138.78,7.0496143]
[1767766410806,1.74145293,138.85,138.78,7.0496143]
[1767766411206,1.74145293,138.85,138.78,0.31995966]
[1767766412613,8.22765293,138.85,138.78,0.31995966]
[1767766414215,8.22765293,138.85,138.78,7.0496143]
[1767766415821,1.74145293,138.87,138.8,0.33000775]
[1767766416814,1.74145293,138.87,138.79,6.4885]
[1767766417015,1.74145293,138.87,138.79,6.81850775]
[1767766421318,6.484,138.9,138.82,6.81730775]
[1767766421515,6.484,138.9,138.79,107.66275464]
[1767766421516,100.8503,138.91,138.81,0.33000775]
[1767766421712,1.74145293,138.87,138.81,0.33000775]
[1767766423223,1.74145293,138.83,138.77,6.72965464]
[1767766423520,1.74145293,138.81,138.76,0.33000775]
[1767766424911,1.74145293,138.81,138.74,13.55056239]
[1767766425113,1.74145293,138.81,138.74,0.33000775]
[1767766427320,1.74145293,138.79,138.74,0.33000775]
[1767766428325,1.74145293,138.8,138.74,0.33000775]
[1767766440129,6.488,138.81,138.74,0.33000775]
[1767766440329,1.74145293,138.8,138.74,0.33000775]
[1767766444726,8.23005293,138.8,138.72,7.04813025]
[1767766445225,6.4886,138.8,138.73,0.31847561]
[1767766446336,6.4874,138.82,138.74,0.31847561]
[1767766446530,1.74145293,138.81,138.74,0.31847561]
[1767766446827,1.74145293,138.81,138.75,0.31847561]
[1767766447021,6.4874,138.82,138.75,0.31847561]
[1767766450637,1.74145293,138.83,138.75,0.31847561]
[1767766453046,1.74145293,138.81,138.75,0.31847561]
[1767766462053,1.74145293,138.81,138.74,6.4909]
[1767766462248,1.74145293,138.81,138.74,6.80937561]
[1767766462552,2.72308452,138.82,138.74,0.31847561]
[1767766463551,6.488,138.81,138.74,0.31847561]
[1767766467459,6.488,138.81,138.74,9.28360948]
[1767766479569,6.488,138.81,138.74,0.31847561]
[1767766486473,6.488,138.81,138.75,6.75542461]
[1767766488672,6.4872,138.83,138.76,0.3284798]
[1767766488870,6.4872,138.83,138.76,7.08390441]
[1767766491075,94.40938452,138.85,138.77,0.3284798]
[1767766491470,94.40938452,138.85,138.77,7.08390441]
[1767766491872,6.4866,138.84,138.77,7.08390441]
[1767766492781,85.2,138.85,138.78,7.08390441]
[1767766502588,6.4858,138.86,138.79,0.32400865]
[1767766502789,6.4858,138.86,138.79,7.07943326]
[1767766503087,6.4858,138.86,138.8,0.32400865]
[1767766503290,91.6649,138.88,138.8,0.32400865]
[1767766504375,91.6649,138.88,138.8,7.07943326]
[1767766505189,91.6649,138.88,138.8,0.32400865]
[1767766512298,6.4852,138.87,138.8,0.32400865]
[1767766513904,85.18,138.88,138.8,0.32400865]
[1767766515097,91.6648,138.88,138.8,0.32400865]
[1767766515602,2.72308452,138.87,138.8,0.32400865]
[1767766516105,2.72308452,138.85,138.78,6.75542461]
[1767766516312,2.72308452,138.85,138.77,13.57033638]
[1767766517612,9.20918452,138.85,138.77,13.57033638]
[1767766518597,9.20918452,138.85,138.78,0.32551177]
[1767766519203,2.72308452,138.85,138.79,0.32551177]
[1767766519406,9.20848452,138.87,138.79,0.32551177]
[1767766519907,85.18,138.88,138.8,0.32551177]
[1767766522001,91.6647,138.88,138.8,0.32551177]
[1767766522509,1.74109315,138.87,138.8,0.32551177]
[1767766527113,1.74109315,138.87,138.8,7.08093638]
[1767766529013,1.74109315,138.87,138.8,13.56913638]
[1767766529216,1.74109315,138.87,138.81,0.32551177]
[1767766529716,1.74109315,138.89,138.83,0.32551177]
[1767766530303,1.74109315,138.87,138.81,0.32551177]
[1767766535215,1.74109315,138.87,138.82,0.30400256]
[1767766539520,1.74109315,138.87,138.81,6.73651491]
[1767766542822,1.74109315,138.87,138.81,7.04051747]
[1767766543020,1.74109315,138.87,138.82,6.73651491]
[1767766543219,1.74109315,138.86,138.82,6.73651491]
[1767766552131,1.74109315,138.86,138.81,6.73651491]
[1767766553631,8.22669315,138.86,138.81,6.73651491]
[1767766555333,6.4849,138.88,138.81,7.04051747]
[1767766555535,1.74109315,138.86,138.81,7.04051747]
[1767766557238,6.4849,138.88,138.81,7.04051747]
[1767766557535,1.74109315,138.86,138.81,7.04051747]
[1767766559136,1.74109315,138.86,138.81,6.73651491]
[1767766560937,1.74109315,138.86,138.81,7.04051747]
[1767766563343,8.22679315,138.86,138.81,6.73651491]
[1767766563636,1.74109315,138.84,138.8,6.73651491]
[1767766567648,1.74109315,138.84,138.8,7.03777731]
[1767766568743,1.74109315,138.86,138.8,7.03777731]
[1767766569140,8.22599315,138.88,138.81,0.3012624]
[1767766570243,8.22599315,138.88,138.81,7.03777731]
[1767766584159,6.4849,138.88,138.82,0.3012624]
[1767766584455,8.22599315,138.88,138.82,0.3012624]
[1767766584657,6.4849,138.88,138.82,0.3012624]
[1767766589773,6.4853,138.87,138.81,0.3012624]
[1767766597874,6.4853,138.87,138.81,7.03777731]
[1767766601274,6.4844,138.89,138.82,0.30808586]
[1767766601467,6.4844,138.89,138.82,7.04460077]
[1767766603184,6.4847,138.88,138.82,7.04460077]
[1767766603384,100.8545,138.91,138.83,0.30808586]
[1767766603882,100.8545,138.91,138.83,7.04460077]
[1767766604681,6.4839,138.9,138.83,7.04460077]
[1767766605067,6.4839,138.9,138.84,0.30808586]
[1767766607079,87.88020626,138.92,138.84,0.30808586]
[1767766607080,6.4843,138.89,138.84,0.30808586]
[1767766610782,6.4848,138.88,138.82,7.04460077]
[1767766611287,6.4848,138.88,138.83,0.30808586]
[1767766612103,6.484,138.9,138.83,0.30808586]
[1767766615189,6.484,138.9,138.84,0.30808586]
[1767766615489,91.643,138.92,138.85,0.30808586]
[1767766616588,91.643,138.92,138.86,0.30808586]
[1767766627501,6.483,138.92,138.86,0.30808586]
[1767766629703,94.34210626,138.94,138.86,0.30808586]
[1767766636006,6.4824,138.93,138.86,0.30808586]
[1767766636203,2.72020626,138.92,138.84,7.05218921]
[1767766636610,85.12,138.91,138.84,0.32856638]
[1767766637711,91.6033,138.91,138.84,0.32856638]
[1767766637912,2.72020626,138.9,138.84,0.32856638]
[1767766639011,2.72020626,138.9,138.83,6.72362283]
[1767766639216,2.72020626,138.9,138.82,7.05218921]
[1767766640309,9.20410626,138.9,138.82,7.05218921]
[1767766640509,9.20410626,138.9,138.82,0.32856638]
[1767766640706,9.20410626,138.9,138.82,7.05461709]
[1767766641022,9.20410626,138.9,138.83,0.32856638]
[1767766644321,9.20410626,138.9,138.83,7.05461709]
[1767766646517,1.74053721,138.88,138.83,7.05461709]
[1767766654125,6.4839,138.9,138.83,7.05461709]
[1767766654424,1.74053721,138.88,138.83,7.05461709]
[1767766654829,6.4839,138.9,138.83,7.05461709]
[1767766655025,1.74053721,138.88,138.83,7.05461709]
[1767766672747,8.22443721,138.9,138.85,0.31889011]
[1767766678341,8.22443721,138.9,138.84,6.72605071]
[1767766678549,1.74053721,138.88,138.84,6.72605071]
[1767766681048,6.4842,138.89,138.84,7.04742839]
[1767766681249,8.22473721,138.89,138.84,7.04742839]
[1767766681546,8.22473721,138.89,138.85,6.72605071]
[1767766681942,6.4842,138.89,138.85,6.72605071]
[1767766682144,8.22473721,138.89,138.85,6.72605071]
[1767766683651,8.22473721,138.89,138.85,6.75489879]
[1767766684549,8.22403721,138.91,138.86,0.32897352]
[1767766684956,6.4835,138.91,138.87,0.32897352]
[1767766685249,8.22293721,138.93,138.87,7.08387231]
[1767766685649,8.22293721,138.93,138.88,0.32897352]
[1767766686436,6.4829,138.92,138.87,6.75489879]
[1767766687162,1.74053721,138.91,138.87,6.75489879]
[1767766688351,1.74053721,138.91,138.86,7.08387231]
[1767766691052,6.4829,138.92,138.86,7.08387231]
[1767766691256,8.22343721,138.92,138.86,7.08387231]
[1767766699852,1.74053721,138.9,138.86,6.75489879]
[1767766700054,1.74053721,138.9,138.84,7.08387231]
[1767766701157,6.4838,138.9,138.84,0.32897352]
[1767766701362,1.74053721,138.88,138.84,0.32897352]
[1767766706563,1.74053721,138.88,138.83,6.75489879]
[1767766707067,1.74053721,138.88,138.82,6.75489879]
[1767766707360,1.74053721,138.88,138.81,7.08387231]
[1767766708355,1.74053721,138.88,138.81,6.75489879]
[1767766708558,9.20436202,138.89,138.82,0.32897352]
[1767766709771,6.4847,138.88,138.82,0.32897352]
[1767766711767,9.20536202,138.87,138.8,7.07507132]
[1767766712064,9.20536202,138.87,138.81,0.32017253]
[1767766714462,6.4852,138.87,138.81,0.32017253]
[1767766719863,9.20456202,138.89,138.82,0.32017253]
[1767766722575,6.4844,138.89,138.82,0.32017253]
[1767766723976,6.4847,138.88,138.82,0.32017253]
[1767766727379,6.4852,138.87,138.82,0.32017253]
[1767766728373,2.72016202,138.87,138.8,0.32017253]
[1767766728773,6.4862,138.85,138.79,6.75489879]
[1767766729280,6.4862,138.85,138.78,7.07507132]
[1767766730583,9.20636202,138.85,138.78,6.75489879]
[1767766730784,9.20636202,138.85,138.77,7.07507132]
[1767766736489,9.20636202,138.85,138.78,0.32017253]
[1767766743097,9.20636202,138.85,138.78,7.07507132]
[1767766744397,6.4866,138.84,138.77,7.07525722]
[1767766746596,2.72016202,138.85,138.77,6.75489879]
[1767766746803,2.72016202,138.81,138.74,7.07525722]
[1767766746997,100.9037,138.84,138.74,7.07525722]
[1767766746998,2.72016202,138.83,138.75,0.32035843]
[1767766747603,6.488,138.81,138.75,0.32035843]
[1767766748003,2.72016202,138.83,138.75,0.32035843]
[1767766749605,9.20736202,138.83,138.75,0.32035843]
[1767766750398,94.36736202,138.83,138.75,0.32035843]
[1767766750705,6.4875,138.82,138.75,0.32035843]
[1767766755500,6.4868,138.84,138.75,0.32035843]
[1767766755705,6.4868,138.84,138.76,0.32035843]
[1767766756010,6.4868,138.84,138.75,6.75489879]
[1767766756011,85.16,138.86,138.78,0.32035843]
[1767766756905,2.72016202,138.89,138.78,0.32035843]
[1767766757103,85.18,138.9,138.8,0.32035843]
[1767766758706,6.4847,138.88,138.8,0.32035843]
[1767766768513,1.74097593,138.87,138.8,0.32035843]
[1767766771528,1.74097593,138.87,138.8,7.07525722]
[1767766771825,1.74097593,138.87,138.81,0.33063751]
[1767766777134,6.4847,138.88,138.81,0.33063751]
[1767766777335,1.74097593,138.87,138.81,0.33063751]
[1767766784742,1.74097593,138.85,138.79,7.0855363]
[1767766784940,1.74097593,138.85,138.79,0.33063751]
[1767766785240,100.8676,138.89,138.79,0.33063751]
[1767766785436,1.74097593,138.85,138.79,0.33063751]
[1767766787937,1.74097593,138.85,138.77,0.33063751]
[1767766788844,100.8759,138.88,138.76,0.33063751]
[1767766788845,1.74097593,138.83,138.76,0.33063751]
[1767766789842,8.22807593,138.83,138.76,0.33063751]
[1767766801358,8.22727593,138.85,138.76,0.33063751]
[1767766801652,8.22727593,138.85,138.78,0.31360993]
[1767766813963,6.4863,138.85,138.78,0.31360993]
[1767766816762,6.4863,138.85,138.78,7.05378164]
[1767766819167,6.4863,138.85,138.79,6.74017171]
[1767766819368,6.4863,138.85,138.79,7.05378164]
[1767766822370,1.74097593,138.86,138.79,7.05378164]
[1767766824170,1.74097593,138.86,138.8,6.74017171]
[1767766826367,1.74097593,138.86,138.8,7.05378164]
[1767766827366,1.74097593,138.86,138.8,0.31360993]
[1767766827567,1.74097593,138.86,138.8,13.54801691]
[1767766830464,9.20427572,138.89,138.82,0.31360993]
[1767766830867,9.20427572,138.89,138.82,7.05981691]
[1767766831468,9.20427572,138.89,138.82,0.31360993]
[1767766832174,9.20427572,138.89,138.82,7.05981691]
[1767766832471,9.20427572,138.89,138.82,0.31360993]
[1767766851589,85.18,138.9,138.83,0.32005718]
[1767766852296,91.6638,138.9,138.83,0.32005718]
[1767766864712,6.483,138.92,138.84,6.74620698]
[1767766865404,6.483,138.92,138.84,7.06128623]
[1767766865912,6.483,138.92,138.85,6.74620698]
[1767766866610,6.483,138.92,138.85,7.06128623]
[1767766867197,6.483,138.92,138.85,0.31507925]
[1767766868506,6.483,138.92,138.85,7.06128623]
[1767766869910,87.85997572,138.93,138.86,7.06128623]
[1767766871517,87.85997572,138.93,138.87,0.31507925]
[1767766871913,2.71997572,138.93,138.87,0.31507925]
[1767766874507,9.20147572,138.95,138.87,0.31507925]
[1767766880020,85.14,138.96,138.87,0.31507925]
[1767766880223,85.14,138.96,138.88,0.31507925]
[1767766880425,2.71997572,138.95,138.88,0.31507925]
[1767766882320,91.621,138.96,138.89,0.31507925]
[1767766882321,85.14,138.96,138.89,0.31507925]
[1767766882625,2.71997572,138.97,138.89,0.31507925]
[1767766884321,2.71997572,138.97,138.9,0.31507925]
[1767766889822,2.71997572,138.97,138.91,0.31507925]
[1767766890228,85.12,138.99,138.91,0.31507925]
[1767766890229,87.83997572,138.99,138.91,0.31507925]
[1767766890726,1.73843539,138.97,138.91,0.31507925]
[1767766891528,1.73843539,138.97,138.91,6.79797925]
[1767766894032,1.73843539,138.98,138.92,0.32368293]
[1767766895533,6.4793,139.0,138.92,0.32368293]
[1767766895534,1.73843539,138.97,138.92,0.32368293]
[1767766898539,6.4793,139.0,138.92,0.32368293]
[1767766898732,1.73843539,138.97,138.92,0.32368293]
[1767766903240,6.4793,139.0,138.92,0.32368293]
[1767766903425,1.73843539,138.97,138.92,0.32368293]
[1767766904740,6.4793,139.0,138.92,0.32368293]
[1767766904941,1.73843539,138.97,138.92,0.32368293]
[1767766907239,6.4793,139.0,138.92,0.32368293]
[1767766907540,1.73843539,138.98,138.92,0.32368293]
[1767766908544,1.73843539,138.98,138.92,6.80628293]
[1767766915646,1.73843539,139.0,138.93,6.80578293]
[1767766915848,100.7276,139.08,138.94,0.32368293]
[1767766916043,1.73843539,139.03,138.94,0.32368293]
[1767766916952,1.73843539,139.03,138.96,0.32368293]
[1767766918152,6.4773,139.04,138.96,0.32368293]
[1767766918350,1.73843539,139.03,138.97,0.32368293]
[1767766921358,1.73843539,139.01,138.95,7.06988991]
[1767766921656,1.73843539,139.01,138.95,0.32368293]
[1767766924661,1.73843539,138.99,138.93,7.05412243]
[1767766925252,100.7592,139.04,138.93,7.05412243]
[1767766925461,1.73843539,138.99,138.93,7.05412243]
[1767766926762,1.73843539,138.99,138.93,13.53622243]
[1767766928461,187.07854198,139.06,138.94,0.30791545]
[1767766928763,1.73843539,139.03,138.96,7.05412243]
[1767766929157,1.73843539,139.03,138.97,0.30791545]
[1767766933776,1.73843539,139.01,138.96,6.74620698]
[1767766934978,1.73843539,139.01,138.96,7.05412243]
[1767766937378,6.4773,139.04,138.96,7.05412243]
[1767766937772,1.73843539,139.02,138.96,7.05412243]
[1767766941478,1.73843539,139.03,138.96,7.05412243]
[1767766941977,1.73843539,139.03,138.97,0.30791545]
[1767766942983,1.73843539,139.05,138.97,0.30791545]
[1767766943180,1.73843539,139.07,138.99,0.30791545]
[1767766943987,8.21433539,139.07,139.0,0.30791545]
[1767766944171,1.73843539,139.05,138.98,7.05412243]
[1767766944369,1.73843539,139.05,138.99,0.30791545]
[1767766945780,100.7234,139.09,138.99,0.30791545]
[1767766945781,1.73843539,139.06,138.99,0.30791545]
[1767766948080,1.73843539,139.07,138.99,0.30791545]
[1767766950280,1.73843539,139.05,138.99,0.30791545]
[1767766950487,1.73843539,139.05,138.97,0.30791545]
[1767766950785,1.73843539,139.05,138.97,7.05412243]
[1767766951185,1.73843539,139.05,138.97,13.53432243]
[1767766951575,1.73843539,139.05,138.98,0.33027693]
[1767766952686,6.4764,139.06,138.98,0.33027693]
[1767766955883,2.71343935,139.07,138.99,0.33027693]
[1767766956489,2.71343935,139.07,139.0,0.33027693]
[1767766957091,6.4756,139.08,139.0,0.33027693]
[1767766958486,2.71343935,139.09,139.01,0.33027693]
[1767766958697,6.4746,139.1,139.01,0.33027693]
[1767766958991,89.00550814,139.11,139.01,0.33027693]
[1767766959188,6.4749,139.09,139.02,0.33027693]
[1767766961393,6.4745,139.1,139.02,0.33027693]
[1767766967599,6.4749,139.09,139.02,0.33027693]
[1767766968597,6.4754,139.08,139.0,7.07648391]
[1767766968799,6.4754,139.08,139.0,0.33027693]
[1767766970300,6.4754,139.08,139.01,0.33027693]
[1767766971098,6.4746,139.1,139.01,0.33027693]
[1767766971398,6.4746,139.1,139.02,0.33027693]
[1767766972095,188.46153935,139.11,139.02,0.33027693]
[1767766973097,6.4749,139.09,139.02,0.33027693]
[1767766975500,9.18833935,139.09,139.02,0.33027693]
[1767766980693,9.18833935,139.09,139.01,6.74620698]
[1767766981102,6.4754,139.08,139.0,7.07821329]
[1767766982303,2.71343935,139.07,139.0,7.07821329]
[1767766982508,9.18933935,139.07,138.99,6.74620698]
[1767766982708,2.71343935,139.05,138.97,6.74620698]
[1767766982905,2.71343935,139.05,138.96,7.0757451]
[1767766983606,6.4774,139.04,138.96,7.0757451]
[1767766985814,2.71343935,139.03,138.96,7.0757451]
[1767766988708,2.71343935,139.03,138.97,0.32953812]
[1767766994908,9.19033935,139.05,138.97,0.32953812]
[1767766999326,9.19033935,139.05,138.97,7.0757451]
[1767767000924,9.19033935,139.05,138.96,13.22680698]
[1767767001222,6.4773,139.04,138.96,13.22680698]
[1767767001626,6.4773,139.04,138.96,13.5563451]
[1767767002121,2.71343935,139.05,138.97,0.32953812]
[1767767003823,9.19023935,139.05,138.97,0.32953812]
[1767767004724,6.4774,139.04,138.97,0.32953812]
[1767767009532,6.4777,139.03,138.97,0.32953812]
[1767767014540,8.2148717,139.03,138.97,0.32953812]
[1767767017641,1.7371717,139.03,138.97,0.32953812]
[1767767018239,1.7371717,139.03,138.97,7.0757451]
[1767767018441,1.7371717,139.05,138.98,0.31857571]
[1767767018645,1.7371717,139.05,138.98,7.06478269]
[1767767021140,1.7371717,139.05,138.99,7.06478269]
[1767767021938,1.7371717,139.05,139.0,0.31857571]
[1767767023441,8.2131717,139.07,139.0,0.31857571]
[1767767023651,93.2522717,139.09,139.02,0.31857571]
[1767767024344,1.7371717,139.07,139.02,0.31857571]
[1767767025551,1.7371717,139.08,139.02,0.31857571]
[1767767032965,1.7371717,139.08,139.01,7.05081663]
[1767767034364,1.7371717,139.07,139.01,7.05081663]
[1767767035462,8.2122717,139.09,139.01,7.05081663]
[1767767035868,6.4751,139.09,139.01,7.05081663]
[1767767036062,8.2122717,139.09,139.02,0.31857571]
[1767767041880,1.7371717,139.07,139.01,0.32063453]
[1767767055382,1.7371717,139.07,139.0,6.73224092]
[1767767055578,1.7371717,139.07,139.0,7.03562097]
[1767767057182,1.7371717,139.07,139.01,6.73224092]
[1767767059079,1.7371717,139.07,139.0,7.03562097]
[1767767060088,1.7371717,139.07,139.01,0.30338005]
[1767767060385,1.7371717,139.07,139.01,7.03562097]
[1767767060984,6.4754,139.08,139.02,0.30338005]
[1767767061191,1.7371717,139.09,139.02,7.03562097]
[1767767062088,8.2120717,139.09,139.02,7.03562097]
[1767767062383,100.7091,139.11,139.01,6.73224092]
[1767767062592,1.7371717,139.07,139.01,6.73224092]
[1767767063092,1.7371717,139.07,139.01,7.03562097]
[1767767064087,1.7371717,139.07,139.02,6.73224092]
[1767767069892,6.4755,139.08,139.02,6.73224092]
[1767767071399,6.4755,139.08,139.02,7.03562097]
[1767767071688,6.4755,139.08,139.03,6.73224092]